bitfinex/quotes_SOLUSD_20240604
["timestamp","ask_amount","ask_price","bid_price","bid_amount"]
[1717521638408,6.73,169.0,168.96,4.3796]
[1717521638708,6.73,168.99,168.98,2.1895]
[1717521641019,6.73,169.0,168.99,2.1894]
[1717521642001,2.1887,169.05,169.0,2.1892]
[1717521642226,6.73,169.02,169.0,2.1892]
[1717521642797,6.73,169.01,168.98,2.1895]
[1717521642996,6.73,168.99,168.98,2.1895]
[1717521644388,6.73,168.99,168.96,24.3795]
[1717521644621,6.73,168.99,168.98,2.1896]
[1717521646021,6.0182,169.03,168.97,124.3793]
[1717521646220,6.73,169.0,168.99,2.1894]
[1717521646599,6.73,169.01,169.0,2.1893]
[1717521648128,6.73,169.01,168.99,2.1894]
[1717521648335,6.73,169.0,168.97,120.0]
[1717521648495,6.73,168.98,168.97,120.0]
[1717521649001,6.73,168.99,168.97,122.1897]
[1717521650404,6.73,168.98,168.97,122.1897]
[1717521651435,6.73,168.98,168.97,120.0]
[1717521652969,6.73,168.98,168.97,122.1897]
[1717521653137,6.73,168.99,168.97,122.1897]
[1717521655539,6.73,168.99,168.97,120.0]
[1717521655720,6.73,168.98,168.97,122.1896]
[1717521656036,6.73,168.98,168.97,2.1896]
[1717521656350,6.73,168.98,168.78,695.23530193]
[1717521656351,2.1903,168.93,168.88,2.1907]
[1717521656524,2.1902,168.94,168.89,2.1906]
[1717521656733,6.73,168.9,168.89,2.1906]
[1717521656918,6.73,168.9,168.88,2.1908]
[1717521657113,10.9502,168.95,168.85,124.3824]
[1717521657114,2.1904,168.92,168.85,124.3824]
[1717521657443,6.73,168.89,168.88,2.1909]
[1717521657640,6.73,168.9,168.88,2.1909]
[1717521658123,10.9502,168.95,168.88,2.1909]
[1717521658124,6.73,168.89,168.88,2.1909]
[1717521659350,6.73,168.9,168.89,2.1907]
[1717521660233,6.73,168.9,168.88,2.1908]
[1717521660437,6.73,168.89,168.88,2.1908]
[1717521660621,6.73,168.89,168.87,122.1909]
[1717521660822,6.73,168.88,168.87,122.1909]
[1717521663549,6.73,168.88,168.86,2.1911]
[1717521663729,6.73,168.87,168.86,2.191]
[1717521666169,6.73,168.87,168.85,2.1912]
[1717521666661,6.73,168.86,168.85,2.1912]
[1717521670159,2.1907,168.89,168.85,2.1912]
[1717521670466,6.73,168.86,168.85,2.1912]
[1717521671452,6.6353,168.92,168.85,120.0]
[1717521671768,6.73,168.9,168.88,2.1908]
[1717521671973,6.73,168.89,168.87,2.1909]
[1717521672281,8.804,168.93,168.88,2.1909]
[1717521672486,6.73,168.89,168.88,2.1909]
[1717521672775,6.73,168.89,168.85,130.9562]
[1717521672943,6.73,168.88,168.87,2.1909]
[1717521676269,6.73,168.88,168.86,2.191]
[1717521676466,6.73,168.87,168.86,2.191]
[1717521682672,2.1904,168.92,168.88,2.1908]
[1717521682964,6.73,168.89,168.88,2.1908]
[1717521685296,6.73,168.89,168.86,2.191]
[1717521685460,6.73,168.87,168.86,2.191]
[1717521687580,6.73,168.87,168.85,2.1912]
[1717521687792,6.2834,168.86,168.8,29.3837]
[1717521688084,6.73,168.81,168.8,27.1919]
[1717521688583,2.1912,168.86,168.8,149.3838]
[1717521688893,2.191,168.87,168.83,2.1914]
[1717521689091,6.73,168.84,168.83,2.1914]
[1717521689585,6.73,168.84,168.82,2.1916]
[1717521689797,6.73,168.83,168.82,2.1916]
[1717521692287,2.1912,168.86,168.82,2.1916]
[1717521692478,6.73,168.83,168.82,2.1916]
[1717521693491,6.73,168.83,168.81,2.1917]
[1717521694178,6.73,168.82,168.81,2.1917]
[1717521695197,6.73,168.82,168.8,27.1918]
[1717521695368,6.73,168.81,168.8,27.1918]
[1717521695569,6.73,168.81,168.8,25.0]
[1717521695763,6.73,168.81,168.8,27.1919]
[1717521695982,6.73,168.81,168.8,25.0]
[1717521696196,8.9218,168.81,168.8,25.0]
[1717521697374,15.3517,168.81,168.8,25.0]
[1717521698596,13.1599,168.81,168.8,25.0]
[1717521699095,6.73,168.81,168.8,25.0]
[1717521699312,2.1916,168.82,168.8,25.0]
[1717521699469,6.73,168.81,168.8,25.0]
[1717521702791,6.4339,168.85,168.8,25.0]
[1717521703111,19.7192,168.87,168.8,27.1918]
[1717521703311,6.73,168.83,168.8,27.1918]
[1717521703894,6.73,168.82,168.8,25.0]
[1717521704805,6.73,168.82,168.8,27.1919]
[1717521706010,6.73,168.82,168.8,25.0]
[1717521706714,2.1914,168.84,168.8,27.1919]
[1717521706908,2.1913,168.85,168.8,27.1919]
[1717521707216,6.73,168.82,168.8,27.1919]
[1717521708104,6.73,168.82,168.8,25.0]
[1717521708405,8.9218,168.81,168.8,25.0]
[1717521708991,2.1917,168.82,168.8,25.0]
[1717521709201,6.73,168.81,168.8,25.0]
[1717521714822,8.9218,168.81,168.8,25.0]
[1717521715219,20.0354,168.81,168.8,25.0]
[1717521715541,26.1909,168.81,168.8,25.0]
[1717521715688,15.0773,168.81,168.8,25.0]
[1717521716623,6.73,168.81,168.8,25.0]
[1717521717023,22.2102,168.81,168.8,25.0]
[1717521717230,15.4802,168.81,168.8,25.0]
[1717521717608,22.2102,168.81,168.8,25.0]
[1717521718129,2.1923,168.77,168.73,2.1927]
[1717521718300,26.92,168.8,168.75,2.1924]
[1717521718505,6.5584,168.8,168.75,2.1924]
[1717521718828,6.73,168.76,168.75,2.1925]
[1717521719303,6.73,168.76,168.75,6.5776]
[1717521719506,26.92,168.8,168.77,2.1922]
[1717521719704,6.73,168.78,168.77,2.1922]
[1717521720831,2.1917,168.82,168.77,2.1922]
[1717521721033,2.1917,168.82,168.78,2.1921]
[1717521721202,8.5822,168.84,168.8,2.1919]
[1717521721527,6.73,168.81,168.79,2.1919]
[1717521721729,6.73,168.8,168.79,2.1919]
[1717521723433,6.73,168.8,168.78,2.1921]
[1717521723623,6.73,168.8,168.77,4.3846]
[1717521723624,6.73,168.8,168.79,2.192]
[1717521725230,6.73,168.8,168.78,2.1921]
[1717521725540,6.73,168.81,168.78,2.1921]
[1717521726420,6.73,168.81,168.79,2.192]
[1717521726618,2.1916,168.83,168.79,2.192]
[1717521726924,6.73,168.82,168.79,2.192]
[1717521727334,6.2854,168.88,168.8,126.5756]
[1717521727636,6.73,168.86,168.83,2.1915]
[1717521727804,6.73,168.86,168.84,2.1913]
[1717521728250,6.73,168.87,168.84,2.1913]
[1717521728717,6.73,168.87,168.82,4.3832]
[1717521728907,6.73,168.87,168.84,2.1913]
[1717521730325,6.73,168.87,168.85,2.1912]
[1717521730709,6.73,168.87,168.84,2.1913]
[1717521730931,6.73,168.87,168.85,2.1912]
[1717521731715,6.73,168.87,168.84,2.1913]
[1717521732338,6.73,168.87,168.85,2.1912]
[1717521737037,6.73,168.86,168.82,2.1915]
[1717521737214,6.73,168.84,168.82,2.1915]
[1717521737734,6.73,168.84,168.78,126.73]
[1717521737735,8.9216,168.83,168.78,2.1921]
[1717521737934,6.73,168.79,168.77,2.1922]
[1717521738143,6.73,168.78,168.76,2.1924]
[1717521738521,4.3832,168.83,168.74,2.1926]
[1717521738522,6.73,168.77,168.74,2.1926]
[1717521738911,6.73,168.77,168.75,2.1925]
[1717521739117,6.73,168.76,168.75,2.1925]
[1717521739868,2.1928,168.73,168.71,0.8406047]
[1717521740151,6.73,168.72,168.71,0.8406047]
[1717521741445,22.0474,168.72,168.71,0.8406047]
[1717521742331,22.2174,168.72,168.71,0.8406047]
[1717521743038,22.0474,168.72,168.71,0.8406047]
[1717521745624,26.6033,168.72,168.71,0.8406047]
[1717521747039,22.2174,168.72,168.71,0.8406047]
[1717521747539,26.6033,168.72,168.71,0.8406047]
[1717521747959,33.1822,168.72,168.71,0.8406047]
[1717521748146,26.6033,168.72,168.71,0.8406047]
[1717521750742,20.0388,168.72,168.71,0.8406047]
[1717521750935,15.6529,168.72,168.71,0.8406047]
[1717521751140,2.1929,168.72,168.71,0.8406047]
[1717521751442,6.2465,168.76,168.71,0.8406047]
[1717521751756,6.73,168.73,168.71,3.0336047]
[1717521752775,6.73,168.72,168.71,0.8406047]
[1717521754073,8.9229,168.72,168.71,0.8406047]
[1717521754273,15.6529,168.72,168.71,0.8406047]
[1717521754735,8.9229,168.72,168.71,0.8406047]
[1717521754934,2.1929,168.72,168.71,0.8406047]
[1717521755267,8.9229,168.72,168.71,0.8406047]
[1717521759976,20.2088,168.72,168.71,0.8406047]
[1717521760141,15.6529,168.72,168.71,0.8406047]
[1717521761175,2.1929,168.72,168.71,0.8406047]
[1717521761340,8.9229,168.72,168.71,0.8406047]
[1717521764752,2.1928,168.73,168.71,0.8406047]
[1717521764951,6.15437167,168.78,168.71,0.8406047]
[1717521765182,6.73,168.72,168.71,0.8406047]
[1717521765679,8.9229,168.72,168.71,0.8406047]
[1717521765853,6.73,168.72,168.71,0.8406047]
[1717521766363,2.1927,168.74,168.71,0.8406047]
[1717521766558,6.73,168.72,168.71,0.8406047]
[1717521767252,2.1927,168.74,168.71,0.8406047]
[1717521767468,6.73,168.72,168.71,0.8406047]
[1717521767653,2.1927,168.74,168.71,0.8406047]
[1717521767973,6.73,168.72,168.71,0.8406047]
[1717521769165,2.1927,168.74,168.71,0.8406047]
[1717521769363,6.73,168.73,168.71,3.0337047]
[1717521769685,6.73,168.73,168.71,0.8406047]
[1717521769854,8.9228,168.73,168.71,0.8406047]
[1717521770165,6.73,168.72,168.71,0.8406047]
[1717521770844,8.9229,168.72,168.71,0.8406047]
[1717521772072,2.1929,168.72,168.71,0.8406047]
[1717521772244,8.9229,168.72,168.71,0.8406047]
[1717521773053,42.0589,168.72,168.71,0.8406047]
[1717521773468,41.8889,168.72,168.71,0.8406047]
[1717521773675,41.7189,168.72,168.71,0.8406047]
[1717521776456,35.3896,168.72,168.71,0.8406047]
[1717521776886,6.5788,168.72,168.71,0.8406047]
[1717521777196,13.3088,168.72,168.71,0.8406047]
[1717521778790,8.9229,168.72,168.71,0.8406047]
[1717521780770,13.3088,168.72,168.71,0.8406047]
[1717521783589,8.9229,168.72,168.71,0.8406047]
[1717521788787,6.3882,168.76,168.71,0.8406047]
[1717521788788,2.1929,168.73,168.71,0.8406047]
[1717521788990,6.73,168.73,168.71,0.8406047]
[1717521789393,6.73,168.73,168.71,3.0336047]
[1717521789989,6.73,168.73,168.71,0.8406047]
[1717521790207,6.73,168.73,168.71,3.0337047]
[1717521790414,6.73,168.72,168.71,0.8406047]
[1717521790606,8.9229,168.72,168.71,0.8406047]
[1717521791106,6.5788,168.72,168.71,0.8406047]
[1717521791314,13.3088,168.72,168.71,0.8406047]
[1717521791513,19.8877,168.72,168.71,0.8406047]
[1717521791819,26.6177,168.72,168.71,0.8406047]
[1717521792529,15.8229,168.72,168.71,0.8406047]
[1717521792826,8.9229,168.72,168.71,0.8406047]
[1717521793399,2.1929,168.72,168.71,0.8406047]
[1717521793618,8.9229,168.72,168.71,0.8406047]
[1717521794007,9.0929,168.72,168.71,0.8406047]
[1717521794326,15.8229,168.72,168.71,0.8406047]
[1717521795823,8.9229,168.72,168.71,0.8406047]
[1717521797431,2.1929,168.72,168.71,0.8406047]
[1717521797721,8.9229,168.72,168.71,0.8406047]
[1717521798304,2.1929,168.72,168.71,0.8406047]
[1717521798504,8.9229,168.72,168.71,0.8406047]
[1717521799611,15.6529,168.72,168.71,0.8406047]
[1717521800525,8.9229,168.72,168.71,0.8406047]
[1717521801805,2.1929,168.72,168.71,0.8406047]
[1717521802004,8.9229,168.72,168.71,0.8406047]
[1717521802528,2.1929,168.72,168.71,0.8406047]
[1717521802821,8.9229,168.72,168.71,0.8406047]
[1717521805031,2.1929,168.72,168.71,0.8406047]
[1717521805322,8.9229,168.72,168.71,0.8406047]
[1717521806702,2.1929,168.72,168.71,0.8406047]
[1717521807109,8.9229,168.72,168.71,0.8406047]
[1717521807406,6.73,168.72,168.71,0.8406047]
[1717521807612,8.9228,168.73,168.71,0.8406047]
[1717521807823,2.1928,168.73,168.71,0.8406047]
[1717521808021,8.9228,168.73,168.71,0.8406047]
[1717521809518,2.1927,168.74,168.71,0.8406047]
[1717521809717,13.1541,168.77,168.73,2.1928]
[1717521809718,6.73,168.76,168.73,2.1928]
[1717521810038,6.73,168.75,168.71,9.4412047]
[1717521811413,8.9226,168.75,168.71,9.4412047]
[1717521811712,6.73,168.75,168.71,9.4412047]
[1717521812347,6.73,168.74,168.71,3.0336047]
[1717521812711,8.9227,168.74,168.71,0.8406047]
[1717521812917,8.9228,168.73,168.71,0.8406047]
[1717521813116,8.9229,168.72,168.71,0.8406047]
[1717521815127,6.73,168.72,168.71,0.8406047]
[1717521816436,2.1929,168.72,168.71,0.8406047]
[1717521816731,8.9229,168.72,168.71,0.8406047]
[1717521817242,6.73,168.72,168.71,0.8406047]
[1717521818319,8.9229,168.72,168.71,0.8406047]
[1717521819157,13.3088,168.72,168.71,0.8406047]
[1717521821052,13.6488,168.72,168.71,0.8406047]
[1717521821442,9.0929,168.72,168.71,0.8406047]
[1717521821750,8.9229,168.72,168.71,0.8406047]
[1717521825348,13.3088,168.72,168.71,0.8406047]
[1717521825666,19.8877,168.72,168.71,0.8406047]
[1717521825847,13.3088,168.72,168.71,0.8406047]
[1717521829123,13.4788,168.72,168.71,0.8406047]
[1717521829541,13.3088,168.72,168.71,0.8406047]
[1717521831231,13.4788,168.72,168.71,0.8406047]
[1717521831429,20.0577,168.72,168.71,0.8406047]
[1717521832631,20.2277,168.72,168.71,0.8406047]
[1717521834349,13.6488,168.72,168.71,0.8406047]
[1717521834543,9.2629,168.72,168.71,0.8406047]
[1717521835250,2.1929,168.72,168.71,0.8406047]
[1717521835553,8.9229,168.72,168.71,0.8406047]
[1717521836049,2.1929,168.72,168.71,0.8406047]
[1717521836350,8.9229,168.72,168.71,0.8406047]
[1717521841751,13.3088,168.72,168.71,0.8406047]
[1717521842053,28.6596,168.72,168.71,0.8406047]
[1717521842253,35.5596,168.72,168.71,0.8406047]
[1717521843757,35.7296,168.72,168.71,0.8406047]
[1717521844853,28.9996,168.72,168.71,0.8406047]
[1717521845042,22.4207,168.72,168.71,0.8406047]
[1717521845249,22.2507,168.72,168.71,0.8406047]
[1717521845437,13.4788,168.72,168.71,0.8406047]
[1717521846334,13.3088,168.72,168.71,0.8406047]
[1717521846735,20.0577,168.72,168.71,0.8406047]
[1717521848053,6.5788,168.72,168.71,0.8406047]
[1717521848465,13.3088,168.72,168.71,0.8406047]
[1717521848954,2.1929,168.72,168.71,0.8406047]
[1717521849157,8.9229,168.72,168.71,0.8406047]
[1717521849541,2.1929,168.72,168.71,0.8406047]
[1717521849747,8.9229,168.72,168.71,0.8406047]
[1717521850141,2.1929,168.72,168.71,0.8406047]
[1717521850459,6.73,168.72,168.71,0.8406047]
[1717521850640,13.1556,168.75,168.71,0.8406047]
[1717521850837,8.9229,168.72,168.71,0.8406047]
[1717521854250,2.1929,168.72,168.71,0.8406047]
[1717521854447,8.9229,168.72,168.71,0.8406047]
[1717521856246,9.0929,168.72,168.71,0.8406047]
[1717521856573,13.3088,168.72,168.71,0.8406047]
[1717521856873,8.9229,168.72,168.71,0.8406047]
[1717521857762,28.9807,168.72,168.71,0.8406047]
[1717521858068,41.9447,168.72,168.71,0.8406047]
[1717521858757,35.7296,168.72,168.71,0.8406047]
[1717521862048,29.1507,168.72,168.71,0.8406047]
[1717521864646,35.7296,168.72,168.71,0.8406047]
[1717521871046,28.9996,168.72,168.71,0.8406047]
[1717521871757,28.6596,168.72,168.71,0.8406047]
[1717521874147,15.3507,168.72,168.71,0.8406047]
[1717521874583,22.0807,168.72,168.71,0.8406047]
[1717521874752,41.6963,168.72,168.71,0.8406047]
[1717521875165,35.3896,168.72,168.71,0.8406047]
[1717521875577,28.8107,168.72,168.71,0.8406047]
[1717521875782,2.1929,168.72,168.71,0.8406047]
[1717521875980,8.9229,168.72,168.71,0.8406047]
[1717521877290,2.1929,168.72,168.71,0.8406047]
[1717521877461,8.9229,168.72,168.71,0.8406047]
[1717521879978,6.5788,168.72,168.71,0.8406047]
[1717521880291,13.3088,168.72,168.71,0.8406047]
[1717521884289,8.9229,168.72,168.71,0.8406047]
[1717521884585,2.1929,168.72,168.71,0.8406047]
[1717521885083,8.9229,168.72,168.71,0.8406047]
[1717521885480,2.1929,168.73,168.71,0.8406047]
[1717521885670,6.73,168.72,168.71,0.8406047]
[1717521886283,2.1929,168.73,168.71,0.8406047]
[1717521886488,6.73,168.72,168.71,0.8406047]
[1717521887260,2.1926,168.75,168.71,0.8406047]
[1717521887461,8.9227,168.74,168.71,0.8406047]
[1717521888161,8.9228,168.73,168.71,0.8406047]
[1717521888581,6.73,168.72,168.71,0.8406047]
[1717521888760,8.9229,168.72,168.71,0.8406047]
[1717521890701,6.73,168.72,168.71,0.8406047]
[1717521891064,8.9229,168.72,168.71,0.8406047]
[1717521897468,20.2088,168.72,168.71,0.8406047]
[1717521897673,26.7877,168.72,168.71,0.8406047]
[1717521897971,20.2088,168.72,168.71,0.8406047]
[1717521898386,35.5596,168.72,168.71,0.8406047]
[1717521898696,13.6488,168.72,168.71,0.8406047]
[1717521899195,26.9577,168.72,168.71,0.8406047]
[1717521899881,42.1533,168.72,168.71,0.8406047]
[1717521900721,35.7296,168.72,168.71,0.8406047]
[1717521901771,62.0321,168.72,168.71,0.8406047]
[1717521902696,55.9196,168.72,168.71,0.8406047]
[1717521903203,40.5688,168.72,168.71,0.8406047]
[1717521903693,47.1477,168.72,168.71,0.8406047]
[1717521903884,55.9196,168.72,168.71,0.8406047]
[1717521904569,22.2696,168.72,168.71,0.8406047]
[1717521904890,55.9196,168.72,168.71,0.8406047]
[1717521906080,49.3407,168.72,168.71,0.8406047]
[1717521906474,49.1707,168.72,168.71,0.8406047]
[1717521906797,55.5796,168.72,168.71,0.8406047]
[1717521907475,6.5796,168.71,168.62,16.3315]
[1717521907676,6.73,168.65,168.64,2.194]
[1717521907899,6.73,168.67,168.62,20.7199]
[1717521908196,6.73,168.68,168.66,2.1937]
[1717521909275,6.73,168.68,168.65,2.1938]
[1717521909887,6.73,168.67,168.66,2.1937]
[1717521910281,6.73,168.67,168.65,8.7431]
[1717521910691,6.73,168.66,168.64,2.1939]
[1717521910999,2.1932,168.7,168.62,146.73]
[1717521911198,6.73,168.68,168.65,2.1938]
[1717521911497,6.73,168.68,168.66,2.1937]
[1717521911694,6.73,168.68,168.64,2.1938]
[1717521911876,6.73,168.68,168.65,2.1938]
[1717521912070,6.73,168.68,168.66,6.1741]
[1717521912274,6.73,168.68,168.66,8.3678]
[1717521912497,6.17836605,168.72,168.66,8.3678]
[1717521912703,6.73,168.7,168.68,2.1934]
[1717521913304,6.73,168.7,168.67,2.1935]
[1717521914292,6.18076715,168.73,168.67,2.1935]
[1717521914508,6.73,168.7,168.68,2.1934]
[1717521914709,2.1928,168.74,168.69,2.1932]
[1717521914891,6.73,168.72,168.69,2.1932]
[1717521915208,6.73,168.73,168.7,2.1932]
[1717521915378,6.73,168.73,168.67,4.3872]
[1717521915579,6.73,168.72,168.67,4.3872]
[1717521915779,6.73,168.72,168.69,2.1933]
[1717521916180,6.73,168.71,168.69,2.1933]
[1717521916406,6.73,168.71,168.68,8.3691]
[1717521916600,6.73,168.71,168.7,2.1932]
[1717521916900,6.73,168.72,168.7,2.1932]
[1717521917710,6.73,168.72,168.69,2.1933]
[1717521918195,6.73,168.71,168.69,2.1933]
[1717521918786,2.1931,168.71,168.67,2.1935]
[1717521918981,6.73,168.69,168.67,2.1935]
[1717521919213,6.73,168.7,168.67,2.1935]
[1717521919920,6.73,168.7,168.68,2.1934]
[1717521920794,6.73,168.7,168.69,2.1933]
[1717521921303,6.73,168.71,168.69,2.1933]
[1717521922085,6.1797228,168.76,168.7,2.1932]
[1717521922289,6.73,168.72,168.7,2.1932]
[1717521922690,6.73,168.72,168.7,2.1931]
[1717521922891,6.73,168.72,168.69,2.1932]
[1717521923112,2.1927,168.74,168.7,2.1931]
[1717521923313,6.73,168.72,168.7,2.1931]
[1717521925618,6.73,168.73,168.7,2.1931]
[1717521925914,6.73,168.72,168.7,2.1932]
[1717521926119,0.17,168.77,168.69,15.3532]
[1717521926419,6.73,168.73,168.72,2.1929]
[1717521926615,6.73,168.73,168.71,2.193]
[1717521926993,6.73,168.73,168.72,2.1929]
[1717521927194,6.73,168.73,168.71,2.193]
[1717521927395,6.73,168.73,168.7,2.1931]
[1717521927699,6.73,168.73,168.72,2.1929]
[1717521928099,6.52452358,168.78,168.72,2.1929]
[1717521928100,2.1925,168.76,168.72,2.1929]
[1717521928409,6.73,168.73,168.72,2.1929]
[1717521929220,6.73,168.73,168.7,2.1931]
[1717521929395,2.1927,168.75,168.71,2.193]
[1717521929396,2.1926,168.75,168.71,2.193]
[1717521929719,6.73,168.73,168.72,2.1929]
[1717521930516,2.1924,168.77,168.72,2.1929]
[1717521930694,6.73,168.74,168.72,2.1929]
[1717521931515,6.73,168.73,168.71,2.193]
[1717521931723,6.73,168.73,168.7,2.1931]
[1717521931936,6.73,168.73,168.71,2.193]
[1717521933009,2.1926,168.75,168.71,2.193]
[1717521933311,2.1927,168.74,168.7,2.1931]
[1717521933522,6.73,168.72,168.7,2.1931]
[1717521934195,6.73,168.71,168.68,4.3869]
[1717521934400,6.73,168.72,168.7,2.1931]
[1717521935327,6.73,168.72,168.71,2.1931]
[1717521935726,2.1926,168.75,168.71,2.1931]
[1717521936027,2.5325,168.76,168.71,2.1931]
[1717521936193,6.73,168.73,168.71,2.1931]
[1717521936394,6.73,168.72,168.71,2.1931]
[1717521936804,6.73,168.72,168.7,2.1931]
[1717521938724,6.73,168.72,168.71,2.1931]
[1717521939030,6.73,168.73,168.71,2.1931]
[1717521939401,2.3625,168.76,168.72,2.1929]
[1717521940028,6.73,168.73,168.72,2.1929]
[1717521940219,2.3625,168.76,168.72,2.1929]
[1717521940522,6.73,168.73,168.72,2.1929]
[1717521940937,2.3625,168.76,168.72,2.1929]
[1717521941106,6.73,168.73,168.71,2.193]
[1717521941296,6.73,168.72,168.7,2.1932]
[1717521941496,2.1932,168.7,168.66,2.1937]
[1717521941700,6.73,168.68,168.65,2.1938]
[1717521941930,6.73,168.68,168.66,2.1937]
[1717521942824,6.73,168.67,168.66,2.1937]
[1717521943001,6.73,168.67,168.65,2.1938]
[1717521943204,6.73,168.67,168.66,2.1937]
[1717521943727,6.73,168.67,168.65,2.1938]
[1717521943901,6.73,168.67,168.66,2.1937]
[1717521944897,6.73,168.69,168.67,2.1935]
[1717521945101,6.73,168.69,168.68,2.1935]
[1717521946026,6.73,168.69,168.67,2.1935]
[1717521946326,6.73,168.68,168.66,2.1937]
[1717521946832,6.73,168.68,168.67,2.1936]
[1717521948019,6.73,168.68,168.66,2.1937]
[1717521948324,6.73,168.68,168.66,2.1936]
[1717521950413,6.73,168.68,168.67,2.1936]
[1717521951313,6.73,168.68,168.64,4.3879]
[1717521951515,2.1932,168.7,168.65,2.1937]
[1717521951516,6.73,168.67,168.65,2.1937]
[1717521952325,6.73,168.67,168.63,4.3882]
[1717521952510,6.73,168.66,168.64,2.1939]
[1717521953027,6.73,168.65,168.64,2.1939]
[1717521953409,6.73,168.66,168.64,2.1939]
[1717521953720,6.73,168.66,168.65,2.1938]
[1717521955209,2.1934,168.69,168.65,2.1938]
[1717521955408,6.73,168.67,168.65,2.1938]
[1717521956138,6.73,168.67,168.62,10.9713]
[1717521956139,6.73,168.67,168.64,2.1939]
[1717521957841,6.73,168.66,168.64,2.1939]
[1717521958437,6.73,168.66,168.61,0.03688614]
[1717521958635,6.73,168.65,168.62,2.1942]
[1717521958835,6.73,168.65,168.63,2.1941]
[1717521959221,6.73,168.66,168.64,2.194]
[1717521959533,6.73,168.66,168.63,2.194]
[1717521960530,6.73,168.66,168.64,2.194]
[1717521961039,6.73,168.66,168.63,2.194]
[1717521961349,6.73,168.66,168.64,2.194]
[1717521961741,6.73,168.66,168.63,2.194]
[1717521962435,6.73,168.66,168.61,11.00848614]
[1717521962641,6.73,168.66,168.63,2.194]
[1717521962843,6.73,168.66,168.64,2.194]
[1717521963715,6.73,168.66,168.63,2.194]
[1717521963926,8.9238,168.66,168.62,2.1942]
[1717521964643,8.9238,168.66,168.63,2.1941]
[1717521964942,8.9238,168.65,168.62,2.1942]
[1717521965851,6.73,168.65,168.62,2.1942]
[1717521966037,6.73,168.65,168.63,2.1941]
[1717521966554,2.1935,168.68,168.64,2.1939]
[1717521966720,6.73,168.66,168.64,2.1939]
[1717521967242,2.1935,168.68,168.64,2.1939]
[1717521967550,8.9236,168.67,168.64,2.1939]
[1717521967845,4.3866,168.7,168.65,2.1938]
[1717521968058,6.73,168.67,168.65,2.1938]
[1717521968426,2.1934,168.69,168.63,4.3882]
[1717521968628,6.73,168.67,168.64,2.1939]
[1717521968825,8.9236,168.67,168.63,2.1941]
[1717521969043,8.9238,168.66,168.63,2.1941]
[1717521969241,6.73,168.66,168.63,2.1941]
[1717521969454,8.9237,168.67,168.63,2.1941]
[1717521969624,8.9237,168.67,168.64,2.194]
[1717521970244,6.73,168.67,168.64,2.194]
[1717521972179,6.73,168.66,168.64,2.194]
[1717521972346,6.73,168.67,168.64,2.194]
[1717521973181,2.1934,168.69,168.65,2.1938]
[1717521973358,0.17,168.71,168.65,4.3876]
[1717521973559,8.9234,168.69,168.65,2.1938]
[1717521973770,6.73,168.68,168.65,2.1938]
[1717521974154,6.73,168.68,168.66,2.1937]
[1717521974371,6.73,168.69,168.66,2.1937]
[1717521975351,2.1932,168.7,168.66,2.1937]
[1717521975551,8.9232,168.7,168.66,2.1937]
[1717521975775,6.73,168.7,168.67,2.1935]
[1717521976186,2.193,168.72,168.68,2.1934]
[1717521976359,8.9231,168.71,168.67,2.1935]